[Event "81st Italian Championship 2022"]
[Site "Cagliari"]
[Date "2022.11.16"]
[Round "5.5"]
[White "David, Alberto"]
[Black "Dvirnyy, Danyyil"]
[Result "1-0"]
[ECO "E46"]
[WhiteElo "2517"]
[BlackElo "2514"]
[Annotator "TA"]
[PlyCount "41"]
[EventDate "2022.11.12"]
[EventType "tourn"]
[EventCountry "ITA"]
[SourceTitle "playchess.com"]
[Source "ChessBase"]
[SourceQuality "1"]
[TimeControl "40/6000+30:20/3000:900+30"]

{[%evp 9,41,0,-8,-8,-1,11,8,10,11,-10,14,-11,-25,-23,-10,0,44,41,85,73,106,89,125,115,118,119,120,104,225,193,258,210,312,296]} 1. d4 {[%emt 0:01:11]} Nf6 {[%emt 0:00:32]} 2. c4 {[%emt 0:00:05]} e6 {[%emt 0:00:21]} 3. Nc3 {[%emt 0:00:11]} Bb4 {[%emt 0:00:38]} 4. e3 {[%emt 0:00:07][%cal Be2e3,Be3e4,Be4e5][%mdl 32]} O-O {[%emt 0:00:27]} 5. Nge2 {[%emt 0:00:14]} c6 {[%emt 0:02:50]} 6. a3 {[%emt 0:00:31] E46: Nimzo-Indian: Rubinstein: 4 e3 0-0 5 Ne2 without early Bd3.} Ba5 {[%emt 0:00:07]} 7. b4 {[%emt 0:00:07]} Bc7 {[%emt 0:00:07]} 8. e4 {[%emt 0:00:12] The position is equal.} d5 {[%emt 0:01:14]} 9. e5 {[%emt 0:00:35]} Nfd7 {[%emt 0:00:23] 9...Nfd7 is better than 9...Ne8.} 10. cxd5 {[%emt 0:04:59]} exd5 {[%emt 0:01:12]} 11. f4 {[%emt 0:01:19]} Qe7 {[%emt 0:02:56]} 12. Qc2 {[%emt 0:01:08][%cal Oc3d5] [#]} Nb6 $146 {[%emt 0:06:52] [#] Threatens to win with ...f6.} ({Predecessor:} 12... Bb6 13. Na4 f6 14. Nxb6 axb6 15. Bb2 b5 16. Ng3 fxe5 17. fxe5 Nb6 18. Bd3 Qh4 {0-1 (76) Kuzubov,Y (2667)-Volokitin,A (2641) Lutsk 2019}) 13. Ng3 $1 {[%emt 0:06:50]} f6 {[%emt 0:05:10][%cal Rf6e5]} 14. Bd3 {[%emt 0:09:16] White is more active.} fxe5 {[%emt 0:13:58]} 15. dxe5 {[%emt 0:02:57]} ({And not} 15. Bxh7+ Kh8 16. dxe5 (16. fxe5 Qh4 $17) 16... g5 $11) 15... Bxe5 {[%emt 0:00:19]} 16. fxe5 {[%emt 0:06:37]} Qxe5+ {[%emt 0:00:08] [#]} 17. Nge2 $1 {[%emt 0:02:53]} Bg4 {[%emt 0:01:58]} 18. Bb2 {[%emt 0:05:57][%cal Oc3d5] aiming for Nxd5!} Qe3 {[%emt 0:03:20]} (18... N8d7 $16) 19. Nd1 $18 {[%emt 0:06:11]} Qg5 {[%emt 0:22:10]} (19... Qe7 {was called for.} 20. Nf2 (20. Bxh7+ Kh8 $18) 20... Bxe2 21. Qxe2 Qxe2+ 22. Bxe2 Re8) 20. Nf2 {[%emt 0:04:58]} Bxe2 {[%emt 0:05:16]} (20... Bf5 {was worth a try.} 21. O-O Nc4) 21. Qxe2 {[%emt 0:01:18] Weighted Error Value: White=0.07 (flawless) /Black=0.40} 1-0

[Event "81st Italian Championship 2022"]
[Site "Cagliari"]
[Date "2022.11.16"]
[Round "5.6"]
[White "Sonis, Francesco"]
[Black "Di Benedetto, Edoardo"]
[Result "1/2-1/2"]
[ECO "D31"]
[WhiteElo "2547"]
[BlackElo "2378"]
[Annotator "TA"]
[PlyCount "79"]
[EventDate "2022.11.12"]
[EventType "tourn"]
[EventCountry "ITA"]
[SourceTitle "playchess.com"]
[Source "ChessBase"]
[SourceQuality "1"]
[TimeControl "40/6000+30:20/3000:900+30"]

{[%evp 14,79,27,34,35,17,31,0,0,0,49,49,93,73,106,39,45,29,38,0,14,18,14,24,85,85,79,66,77,51,54,40,46,33,63,0,0,0,41,19,66,56,74,73,33,31,28,26,27,34,27,32,25,32,31,38,16,51,107,0,0,0,0,0,0,0,0,0]} 1. d4 {[%emt 0:01:45]} d5 {[%emt 0:00:17]} 2. c4 {[%emt 0:00:07]} e6 {[%emt 0:00:09]} 3. Nc3 {[%emt 0:00:08]} Be7 {[%emt 0:00:06]} 4. cxd5 {[%emt 0:01:44]} exd5 {[%emt 0:00:07]} 5. Bf4 {[%emt 0:00:12]} c6 {[%emt 0:00:09]} 6. e3 {[%emt 0:00:51]} Bd6 {[%emt 0:00:12]} 7. Bxd6 {[%emt 0:02:46]} Qxd6 {[%emt 0:00:07]} 8. Bd3 {[%emt 0:00:10]} Ne7 {[%emt 0:00:08] D31: Queen's Gambit Declined: Semi-Slav without ...Nf6 (+ Marshall Gambit and Noteboom) and Exchange Variation lines without ...Nf6.} 9. Qf3 {[%emt 0:00:36]} g6 {[%emt 0:02:01] [#]} 10. Qg3 $146 {[%emt 0:03:56]} ({Predecessor:} 10. Nge2 Bf5 11. Bxf5 Nxf5 12. O-O O-O 13. Nf4 Nd7 14. Nd3 Rfe8 15. Rab1 a5 16. Na4 {1-0 (61) Di Benedetto,E (2386)-Loiacono,L (2255) Premium Chess Arena INT 2020}) 10... Qxg3 {[%emt 0:01:17]} 11. hxg3 {[%emt 0:00:06][%cal Bh2g3,Bg3g4][%mdl 32]} Bf5 {[%emt 0:04:07]} (11... O-O $11 {is more appropriate.}) 12. Be2 $14 {[%emt 0:00:13]} g5 {[%emt 0:02:28]} 13. g4 {[%emt 0:04:23]} Bg6 {[%emt 0:01:41] [#]} 14. Nf3 {[%emt 0:02:16]} (14. f4 $1 $16 {[%cal Rf4f5]}) 14... f6 $1 {[%emt 0:00:22]} 15. Nd2 {[%emt 0:06:03][%cal Bf3d2,Bd2f1,Bf1g3][%mdl 32]} Nd7 {[%emt 0:01:59]} 16. Nf1 {[%emt 0:01:32]} O-O {[%emt 0:08:18]} 17. Ng3 {[%emt 0:01:41]} Rae8 {[%emt 0:01:11]} 18. Kd2 {[%emt 0:02:59]} Nc8 {[%emt 0:06:09]} (18... f5 $11 {keeps the balance.}) 19. Bd3 $16 {[%emt 0:08:28]} Nd6 {[%emt 0:01:37]} 20. Bf5 {[%emt 0:02:13]} Nb6 {[%emt 0:15:55]} 21. b3 {[%emt 0:00:32]} Nbc8 {[%emt 0:02:08]} 22. f3 {[%emt 0:04:33][%cal Bf2f3,Bf3e4,Be4f5][%mdl 32]} (22. Na4 {is interesting.} Ne7 23. Bd7 Rd8 24. Be6+) 22... Ne7 {[%emt 0:01:22][%cal Re7f5]} 23. e4 {[%emt 0:00:18]} Rd8 {[%emt 0:05:32]} 24. Kc2 {[%emt 0:14:24]} (24. Be6+ $14 Kg7 25. Nf5+ (25. exd5 cxd5 26. Rae1 Rfe8 $11) 25... Bxf5 26. exf5 (26. gxf5 dxe4 27. fxe4 Ne8 $14)) 24... dxe4 $11 {[%emt 0:04:43]} 25. fxe4 {[%emt 0:00:07]} b6 {[%emt 0:00:42]} 26. Rad1 {[%emt 0:05:05]} c5 {[%emt 0:00:15]} (26... b5 $11 {feels stronger.}) 27. d5 $14 {[%emt 0:05:20][%cal Bd4d5,Bd5d6][%mdl 32]} (27. dxc5 {seems wilder.} bxc5 28. Na4 c4 29. Nc5) 27... Bxf5 {[%emt 0:03:07]} 28. exf5 {[%emt 0:07:29]} ({Of course not} 28. Nxf5 Nexf5 29. exf5 (29. gxf5 Rfe8 $11) 29... Nf7 $11) 28... Nf7 {[%emt 0:00:39]} 29. Rhe1 {[%emt 0:11:24]} Ne5 {[%emt 0:01:31]} 30. Nh5 {[%emt 0:04:49][%cal Oh5f6] Hoping for Nxf6+!} Kf7 {[%emt 0:02:24] [#]} 31. Rxe5 {[%emt 0:05:54]} fxe5 {[%emt 0:00:09]} 32. d6 {[%emt 0:00:29]} Nc6 {[%emt 0:00:52] Threatens to win with ...Nd4+.} 33. Ne4 {[%emt 0:00:05][%mdl 1024] White has compensation. Pair of Knights!} h6 {[%emt 0:01:50]} 34. Kc3 {[%emt 0:00:02]} Nd4 {[%emt 0:01:04]} 35. Kc4 {[%emt 0:00:23]} Rd7 {[%emt 0:01:28]} (35... Nc2 $14 36. Rd3 Rh8) 36. Rd2 {[%emt 0:04:43] White is more active.} (36. Kd5 $16) 36... Rfd8 $11 {[%emt 0:00:39] The position is equal.} 37. Kd5 {[%emt 0:03:51]} Nb5 {[%emt 0:01:14]} 38. Kc6 {[%emt 0:01:27] Really sharp!} Nd4+ {[%emt 0:00:08]} 39. Kd5 {[%emt 0:00:05]} Nb5 {[%emt 0:00:05]} 40. Kc6 $1 {[%emt 0:00:12] Weighted Error Value: White=0.16 (very precise) /Black=0.15 (very precise)} 1/2-1/2

[Event "81st Italian Championship 2022"]
[Site "Cagliari"]
[Date "2022.11.18"]
[Round "6.1"]
[White "Barp, Alberto"]
[Black "Di Benedetto, Edoardo"]
[Result "1-0"]
[ECO "E71"]
[WhiteElo "2412"]
[BlackElo "2378"]
[Annotator "TA"]
[PlyCount "87"]
[EventDate "2022.11.12"]
[EventType "tourn"]
[EventCountry "ITA"]
[SourceTitle "playchess.com"]
[Source "ChessBase"]
[SourceQuality "1"]
[TimeControl "40/6000+30:20/3000:900+30"]

{[%evp 13,87,29,70,74,127,121,117,110,116,110,108,116,123,59,72,81,57,60,128,131,144,119,87,104,183,187,211,132,131,127,233,225,207,185,216,80,139,135,201,241,235,234,220,233,228,222,186,0,0,0,0,0,0,0,140,133,29989,1159,1268,645,645,546,546,87,64,0,519,515,526,485,676,664,1051,623,29968,29969]} 1. d4 {[%emt 0:00:03]} Nf6 {[%emt 0:00:49]} 2. c4 {[%emt 0:00:24]} g6 {[%emt 0:00:38]} 3. Nc3 {[%emt 0:02:30]} Bg7 {[%emt 0:00:54]} 4. e4 {[%emt 0:00:26]} d6 {[%emt 0:00:16]} 5. h3 {[%emt 0:07:33]} O-O {[%emt 0:00:54]} 6. Be3 {[%emt 0:00:05]} e5 {[%emt 0:02:09]} 7. d5 {[%emt 0:00:26]} Ne8 {[%emt 0:01:12]} 8. g4 {[%emt 0:00:44] White is more active. E71: King's Indian: 4 e4 d6 5 h3.} f5 {[%emt 0:01:14]} (8... Na6 $142) 9. gxf5 $16 {[%emt 0:00:07]} gxf5 {[%emt 0:00:07]} 10. exf5 {[%emt 0:00:12] White is better.} Bxf5 {[%emt 0:00:22]} 11. Nge2 $1 {[%emt 0:01:52]} Qh4 {[%emt 0:31:13]} 12. Ng3 {[%emt 0:09:14]} Bg6 {[%emt 0:00:24]} 13. Bd3 {[%emt 0:02:16]} (13. Qg4 $16 Qxg4 14. hxg4) 13... Bh6 $14 {[%emt 0:04:21]} 14. Rg1 $1 {[%emt 0:17:36]} Bxe3 {[%emt 0:09:03]} 15. fxe3 {[%emt 0:01:48]} Ng7 {[%emt 0:12:04]} (15... Bxd3 $14 16. Qxd3 Nd7) 16. Bxg6 $16 {[%emt 0:02:09]} hxg6 {[%emt 0:00:08] [#]} 17. Qc2 $146 {[%emt 0:20:45]} ({Predecessor:} 17. Qg4 Qxg4 18. hxg4 Nd7 19. Nge4 Kf7 20. Ke2 Ke7 21. Rh1 Rh8 22. Nb5 a6 23. Nxc7 {1-0 (38) Aleksandrov,A (2592)-Mahindrakar,I (2066) Chennai 2020}) 17... Qh6 {[%emt 0:04:35]} 18. O-O-O {[%emt 0:01:31][%cal Oc4c5]} Qxe3+ {[%emt 0:10:05]} (18... Nd7 $16) 19. Kb1 $18 {[%emt 0:00:17]} Qh6 {[%emt 0:00:15]} 20. Rg2 {[%emt 0:10:50][%mdl 1024] White has strong compensation.} Nd7 {[%emt 0:02:58]} 21. Rdg1 $1 {[%emt 0:00:08]} Rf7 {[%emt 0:03:14] [#]} (21... Kh8 $16 {was called for.}) 22. Nge4 $1 {[%emt 0:01:11]} Nf8 {[%emt 0:02:35]} 23. Ng5 {[%emt 0:04:10]} Rf5 {[%emt 0:06:55]} 24. Ne6 {[%emt 0:00:32]} (24. c5 $18 {has better winning chances.}) 24... Nfxe6 {[%emt 0:07:35]} (24... Qxh3 $142 25. Nxc7 Rd8) 25. dxe6 $16 {[%emt 0:00:10]} (25. Rxg6 $6 Qxh3 26. R6g3 Nd4 27. Rxh3 Nxc2 $11) 25... Qxh3 {[%emt 0:00:07]} (25... g5 $16) 26. a3 $18 {[%emt 0:03:01]} (26. Rxg6 Rf1+ 27. Nd1 Rxg1 28. Rxg1 Re8 $11) (26. Nd5 Nxe6 27. Rxg6+ Kf7 $16) 26... Re8 {[%emt 0:06:58]} 27. Rxg6 {[%emt 0:19:03]} Rf1+ {[%emt 0:00:06]} 28. Ka2 {[%emt 0:00:03] The board is on fire.} Rxg1 {[%emt 0:00:09]} 29. Rxg1 {[%emt 0:00:02]} Rxe6 {[%emt 0:02:07]} 30. Qe4 $2 $40 {[%emt 0:00:07][%mdl 128] White mounts an attack.} (30. Qf2 $18) 30... c6 $11 {[%emt 0:00:30] Inhibits Nd5.} 31. Rh1 {[%emt 0:00:03]} Qf5 {[%emt 0:00:12]} 32. Qh4 {[%emt 0:00:02] Hoping for Ne4.} Qf4 {[%emt 0:00:57] White must now prevent ...Qxh4.} (32... Kf7 33. Rh2 (33. Qd8 Qd3 $11) 33... Ke8 34. Ne4) 33. Qh7+ {[%emt 0:01:26]} Kf8 {[%emt 0:00:34] [#]} (33... Kf7 $1 $11 {remains equal.}) 34. Ne4 $1 $16 {[%emt 0:00:16]} (34. Rg1 Qh6 35. Qd3 (35. Rf1+ Ke7 $17) 35... Ne8 $11) 34... Re7 $2 {[%emt 0:01:17][%mdl 8192]} (34... Qf5 $16) 35. Nxd6 {[%emt 0:04:59]} (35. Qh8+ $142 Kf7 36. Rg1 Qf6 37. Nxf6 Kxf6 38. Qh6+ Kf7 39. Rxg7+ Ke8 40. Qh8+ Kd7 41. Qh3+ Kc7 42. Rxe7+ Kb6 43. b4 a5 44. Qd7 axb4 45. axb4 c5 46. Qxb7#) 35... Re6 {[%emt 0:00:26]} 36. Qh8+ {[%emt 0:00:44]} Ke7 {[%emt 0:00:10]} 37. c5 {[%emt 0:00:16]} Qf8 {[%emt 0:00:40]} 38. Nc8+ $2 {[%emt 0:00:54]} (38. Qh4+ $18 Kd7 39. Qg4 (39. Nxb7 Nf5 $16)) 38... Ke8 {[%emt 0:00:13]} 39. Nd6+ $2 {[%emt 0:00:02][%mdl 8192]} ({Of course not} 39. Nxa7 Qxh8 40. Rxh8+ Kf7 $17) (39. Qh3 $14 Qxc5 40. Rd1) 39... Ke7 $18 {[%emt 0:00:08]} 40. Qh7 {[%emt 0:00:45] Intending Rg1 and mate.} Kd8 {[%emt 0:01:24]} 41. Rd1 {[%emt 0:06:31] Threatens to win with Nf5+.} Rxd6 {[%emt 0:07:41]} 42. Rxd6+ {[%emt 0:00:00]} Kc7 {[%emt 0:00:06]} 43. Qg6 {[%emt 0:03:04] Against Qf7+} Kb8 {[%emt 0:02:24]} 44. Rd7 {[%emt 0:06:10] Inhibits Qe7.  Weighted Error Value: White=0.68/Black=0.73} 1-0

[Event "81st Italian Championship 2022"]
[Site "Cagliari"]
[Date "2022.11.18"]
[Round "6.2"]
[White "Dvirnyy, Danyyil"]
[Black "Sonis, Francesco"]
[Result "1-0"]
[ECO "C92"]
[WhiteElo "2514"]
[BlackElo "2547"]
[Annotator "TA"]
[PlyCount "81"]
[EventDate "2022.11.12"]
[EventType "tourn"]
[EventCountry "ITA"]
[SourceTitle "playchess.com"]
[Source "ChessBase"]
[SourceQuality "1"]
[TimeControl "40/6000+30:20/3000:900+30"]

{[%evp 19,81,26,29,24,23,15,11,9,14,16,8,11,20,9,10,16,30,30,23,25,33,27,30,36,29,34,37,32,89,85,85,93,95,96,114,118,112,98,99,116,115,110,158,175,176,164,174,181,183,170,197,181,184,195,181,185,206,191,250,251,288,279,361,355]} 1. e4 {[%emt 0:00:03]} e5 {[%emt 1:41:00]} 2. Nf3 {[%emt 0:00:12]} Nc6 {[%emt 0:00:08]} 3. Bb5 {[%emt 1:41:45]} a6 {[%emt 0:00:08]} 4. Ba4 {[%emt 0:00:05]} Nf6 {[%emt 0:00:12]} 5. O-O {[%emt 0:00:53]} Be7 {[%emt 0:00:13]} 6. Re1 {[%emt 1:41:06]} b5 {[%emt 0:00:09]} 7. Bb3 {[%emt 0:00:04]} d6 {[%emt 0:00:05]} 8. c3 {[%emt 1:41:44]} O-O {[%emt 0:00:08]} 9. h3 {[%emt 0:00:45]} Bb7 {[%emt 0:00:07]} 10. d4 {[%emt 0:00:29]} Re8 {[%emt 0:00:06]} 11. a3 {[%emt 0:05:12] C92: Closed Ruy Lopez: 9...Be6, Karpov and Flohr-Zaitsev Variations.} Bf8 {[%emt 0:00:09]} 12. d5 {[%emt 0:00:56]} Na5 {[%emt 0:00:55]} 13. Ba2 {[%emt 0:00:11] The position is equal.} c6 {[%emt 0:00:07]} 14. dxc6 {[%emt 0:00:31]} Bxc6 {[%emt 0:00:06]} 15. Bg5 {[%emt 0:00:23]} h6 {[%emt 0:00:08]} 16. Bxf6 {[%emt 0:00:12]} Qxf6 {[%emt 0:00:06]} 17. Nfd2 {[%emt 0:00:27] [#]} d5 $146 {[%emt 0:00:05]} ({Predecessor:} 17... Rec8 18. c4 Nb7 19. Re3 Be8 20. Nc3 Nc5 21. Nd5 Qd8 22. Rc1 Ne6 23. Rec3 Rcb8 24. cxb5 Rxb5 {½-½ (41) Janisch,M (2438)-Schulz,G (2438) ICCF email 2020}) 18. exd5 {[%emt 0:04:13]} Bd7 {[%emt 0:00:06]} 19. Qh5 {[%emt 0:13:14]} Bf5 {[%emt 0:25:59]} (19... Bc5 $2 20. Ne4 Bxf2+ 21. Nxf2 $18) 20. Ne4 {[%emt 0:05:45]} Bxe4 {[%emt 0:08:04][%mdl 64] [#] Remove Defender} 21. Rxe4 {[%emt 0:00:10]} Bc5 {[%emt 0:01:11]} 22. Qh4 {[%emt 0:05:59]} Qxh4 {[%emt 0:23:21]} 23. Rxh4 {[%emt 0:00:07]} Be7 {[%emt 0:05:13]} (23... Nb7 $14) 24. Re4 $16 {[%emt 0:05:27]} Nb7 {[%emt 0:05:56]} 25. Nd2 {[%emt 0:01:37][%cal Bb1d2,Bd2f3,Bf3d4,Bd4c6][%mdl 32]} ({Much weaker is} 25. Rxe5 $6 Bg5 26. Rxe8+ Rxe8 $11) 25... Bg5 {[%emt 0:03:02]} 26. Nf3 {[%emt 0:01:51]} Bf4 {[%emt 0:03:21]} 27. g3 {[%emt 0:06:51]} Nd6 {[%emt 0:31:28]} 28. Re2 {[%emt 0:04:02]} ({Of course not} 28. gxf4 $6 Nxe4 29. fxe5 Ng5 30. Nxg5 hxg5 $11) 28... e4 {[%emt 0:00:02]} 29. Nd4 $36 {[%emt 0:01:57][%mdl 2048] White is on the roll.} Bg5 {[%emt 0:00:16]} 30. Rae1 {[%emt 0:08:42]} Bf6 {[%emt 0:02:53]} ({Black should play} 30... f5 31. f3 Bf6) 31. Nc6 {[%emt 0:44:00]} Bd8 {[%emt 0:00:11]} 32. Kg2 {[%emt 0:05:52]} Bb6 {[%emt 0:00:06]} 33. Bb1 {[%emt 0:08:32]} f5 {[%emt 0:00:18]} 34. f3 {[%emt 0:03:34]} e3 {[%emt 0:00:23]} 35. f4 {[%emt 0:01:56]} g6 {[%emt 0:02:36]} 36. Bd3 {[%emt 0:04:20]} Kg7 {[%emt 0:01:35]} 37. Kf3 {[%emt 0:10:16]} Kf6 {[%emt 0:00:05]} 38. Nd4 {[%emt 0:00:54]} Bxd4 {[%emt 0:00:39]} (38... Nc4 $142) 39. cxd4 $18 {[%emt 0:00:06]} Ra7 {[%emt 0:03:30]} 40. Rc1 {[%emt 0:01:08]} ({Don't do} 40. Rxe3 $6 Rxe3+ 41. Rxe3 Re7 $18) 40... Rc8 {[%emt 0:02:06]} 41. Rc5 {[%emt 0:52:41] Weighted Error Value: White=0.02 (flawless) /Black=0.14 (very precise)} 1-0

[Event "81st Italian Championship 2022"]
[Site "Cagliari"]
[Date "2022.11.18"]
[Round "6.3"]
[White "Lodici, Lorenzo"]
[Black "David, Alberto"]
[Result "1/2-1/2"]
[ECO "E27"]
[WhiteElo "2536"]
[BlackElo "2517"]
[Annotator "TA"]
[PlyCount "46"]
[EventDate "2022.11.12"]
[EventType "tourn"]
[EventCountry "ITA"]
[SourceTitle "playchess.com"]
[Source "ChessBase"]
[SourceQuality "1"]
[TimeControl "40/6000+30:20/3000:900+30"]

{[%evp 11,46,0,12,6,27,-28,-21,-26,-30,-85,-79,-69,-64,-129,-136,-135,-135,-124,-73,-48,-42,-59,-43,-64,-19,-16,-18,-16,-16,-24,-18,-9,-37,-43,-3,-8,14]} 1. d4 {[%emt 0:00:11]} Nf6 {[%emt 0:00:10]} 2. c4 {[%emt 0:00:14]} e6 {[%emt 0:00:19]} 3. Nc3 {[%emt 0:00:24]} Bb4 {[%emt 0:00:15]} 4. f3 {[%emt 0:00:04]} O-O {[%emt 0:00:54]} 5. a3 {[%emt 0:00:05]} Bxc3+ {[%emt 0:00:08]} 6. bxc3 {[%emt 0:00:04]} Ne8 {[%emt 0:00:54]} 7. e4 {[%emt 0:00:08] E27: Nimzo-Indian: Sämisch: 5...0-0 6 f3.} c5 {[%emt 0:01:57] [#]} 8. dxc5 $146 {[%emt 0:13:19]} (8. f4 $142) ({Predecessor:} 8. Bd3 b6 9. f4 f5 10. Nf3 Nc6 11. O-O Ba6 12. d5 Na5 13. e5 d6 14. Ng5 Nc7 15. dxe6 dxe5 16. fxe5 {1-0 (51) Bluebaum,M (2642)-Fedorovsky,M (2498) Germany 2017}) 8... Qa5 $11 {[%emt 0:33:57][%csl LRc3,LRc5]} 9. Be3 {[%emt 0:03:19]} Na6 $1 {[%emt 0:03:22]} (9... Qxc3+ 10. Kf2 $14 (10. Bd2 Qe5 $11)) 10. Qd4 {[%emt 0:03:00] [#]} (10. a4 $11 {remains equal.}) 10... Nxc5 $1 $17 {[%emt 0:04:14]} 11. Rb1 {[%emt 0:01:23] Inhibits Nb3.} b6 {[%emt 0:02:54]} 12. h4 {[%emt 0:00:10]} ({White should play} 12. Ne2 $15) 12... Ba6 {[%emt 0:14:33]} 13. h5 {[%emt 0:00:06]} Rc8 {[%emt 0:04:59]} 14. h6 {[%emt 0:00:38] Threatens to win with hxg7.} e5 {[%emt 0:00:35]} (14... g6 $142 15. Be2 Rc6) 15. Qd2 {[%emt 0:08:03]} ({Don't go for} 15. Qxe5 $2 {[#]} Nd3+ $1 {[%mdl 512]} 16. Bxd3 Qxe5 $19) 15... g6 {[%emt 0:00:11]} ({Don't play} 15... Qxa3 16. Bxc5 Qxc5 17. hxg7 (17. Ra1 Bxc4 18. hxg7 Nxg7 $14) 17... Nxg7 18. Qh6 $14) 16. Nh3 {[%emt 0:00:26]} Qxa3 {[%emt 0:07:52]} 17. Be2 {[%emt 0:12:37]} Ne6 {[%emt 0:03:45] Pair of Knights!} 18. O-O {[%emt 0:10:51] Ra1 is the strong threat.} Bxc4 {[%emt 0:11:38]} 19. Ra1 {[%emt 0:00:13]} Qd6 {[%emt 0:00:06] Strongly threatening ...Qxd2.} (19... Qb3 $2 20. Rfb1 Qxb1+ 21. Rxb1 $18) 20. Bxc4 {[%emt 0:00:25]} Qxd2 {[%emt 0:00:35]} 21. Bxd2 {[%emt 0:00:04] And now Bxe6 would win.} Rxc4 {[%emt 0:00:03]} 22. Rxa7 {[%emt 0:00:08]} N8c7 {[%emt 0:00:24]} 23. Ng5 {[%emt 0:07:06]} d6 {[%emt 0:06:11] Weighted Error Value: White=0.14 (very precise) /Black=0.11 (very precise)} 1/2-1/2

[Event "81st Italian Championship 2022"]
[Site "Cagliari"]
[Date "2022.11.18"]
[Round "6.4"]
[White "Moroni, Luca Jr"]
[Black "Basso, Pier Luigi"]
[Result "1/2-1/2"]
[ECO "C50"]
[WhiteElo "2559"]
[BlackElo "2503"]
[Annotator "TA"]
[PlyCount "40"]
[EventDate "2022.11.12"]
[EventType "tourn"]
[EventCountry "ITA"]
[SourceTitle "playchess.com"]
[Source "ChessBase"]
[SourceQuality "1"]
[TimeControl "40/6000+30:20/3000:900+30"]

{[%evp 21,22,0,0]} 1. e4 {[%emt 0:00:04]} e5 {[%emt 0:00:09]} 2. Nf3 {[%emt 0:00:06]} Nc6 {[%emt 0:00:04]} 3. Bc4 {[%emt 0:00:15]} Bc5 {[%emt 0:00:21]} 4. d3 {[%emt 0:00:59]} Nf6 {[%emt 0:00:08]} 5. Nc3 {[%emt 0:00:36]} h6 {[%emt 0:00:15]} 6. O-O {[%emt 0:01:00]} O-O {[%emt 0:02:52]} 7. h3 {[%emt 0:01:04]} a6 {[%emt 0:00:10]} 8. a3 {[%emt 0:01:23]} d6 {[%emt 0:00:12]} 9. Be3 {[%emt 0:00:30]} Bxe3 {[%emt 0:00:08]} 10. fxe3 {[%emt 0:00:06]} Be6 {[%emt 0:00:06]} 11. Bxe6 {[%emt 0:00:06]} fxe6 {[%emt 1:41:35] [#]} {Predecessor:} 12. Qe1 $146 {C50: Hungarian Defence and Giuoco Pianissimo.} Qe8 13. Qg3 Qh5 14. Nh2 Rf7 15. Rf3 Raf8 16. Raf1 Nh7 17. Ng4 Kh8 18. Ne2 Ng5 19. Rxf7 Rxf7 20. Rxf7 Qxf7 {½-½ (51) Mamedov,R (2654)-Tari,A (2630) chess24.com INT 2020} 1/2-1/2